Workbook

Sheet 外国语言文学
A1: 序号 | B1: 考生编号 | C1: 姓名 | D1: 笔试成绩 | E1: 专业面试成绩 | F1: 外语面试成绩 | G1: 复试总成绩百分制 | H1: 复试成绩百分制*40% | I1: 初试成绩 | J1: 初试成绩百分制 | K1: 初试成绩百分制*60% | L1: 总成绩
A2: 1 | B2: 103840213608750 | C2: 李连连 | D2: 82.0 | E2: 52.0 | F2: 40.0 | G2: =D2*30%+E2*50%+F2*20% -> 58.6 | H2: =G2*40% -> 23.4 | I2: 396.0 | J2: =I2/5 -> 79.2 | K2: =J2*60% -> 47.5 | L2: =H2+K2 -> 71.0
A3: 2 | B3: 103840213408720 | C3: 杜倩楠 | D3: 75.0 | E3: 84.0 | F3: 87.0 | G3: =D3*30%+E3*50%+F3*20% -> 81.9 | H3: =G3*40% -> 32.8 | I3: 393.0 | J3: =I3/5 -> 78.6 | K3: =J3*60% -> 47.2 | L3: =H3+K3 -> 79.9
A4: 3 | B4: 106110004050281 | C4: 蓝棚 | D4: 77.5 | E4: 82.4 | F4: 83.0 | G4: =D4*30%+E4*50%+F4*20% -> 81.1 | H4: =G4*40% -> 32.4 | I4: 390.0 | J4: =I4/5 -> 78.0 | K4: =J4*60% -> 46.8 | L4: =H4+K4 -> 79.2
A5: 4 | B5: 101510001005232 | C5: 班日 | D5: 80.5 | E5: 83.4 | F5: 87.0 | G5: =D5*30%+E5*50%+F5*20% -> 83.3 | H5: =G5*40% -> 33.3 | I5: 387.0 | J5: =I5/5 -> 77.4 | K5: =J5*60% -> 46.4 | L5: =H5+K5 -> 79.7
A6: 5 | B6: 105110110411892 | C6: 张凯丽 | D6: 81.5 | E6: 86.0 | F6: 80.0 | G6: =D6*30%+E6*50%+F6*20% -> 83.5 | H6: =G6*40% -> 33.4 | I6: 387.0 | J6: =I6/5 -> 77.4 | K6: =J6*60% -> 46.4 | L6: =H6+K6 -> 79.8
A7: 6 | B7: 105330431419791 | C7: 贺容 | D7: 76.5 | E7: 47.0 | F7: 60.0 | G7: =D7*30%+E7*50%+F7*20% -> 58.5 | H7: =G7*40% -> 23.4 | I7: 386.0 | J7: =I7/5 -> 77.2 | K7: =J7*60% -> 46.3 | L7: =H7+K7 -> 69.7
A8: 7 | B8: 100060210507664 | C8: 石全霞 | D8: 85.5 | E8: 79.4 | F8: 57.0 | G8: =D8*30%+E8*50%+F8*20% -> 76.8 | H8: =G8*40% -> 30.7 | I8: 385.0 | J8: =I8/5 -> 77.0 | K8: =J8*60% -> 46.2 | L8: =H8+K8 -> 76.9
A9: 8 | B9: 105110110412121 | C9: 郭滢 | D9: 80.0 | E9: 56.4 | F9: 66.0 | G9: =D9*30%+E9*50%+F9*20% -> 65.4 | H9: =G9*40% -> 26.2 | I9: 385.0 | J9: =I9/5 -> 77.0 | K9: =J9*60% -> 46.2 | L9: =H9+K9 -> 72.4
A10: 9 | B10: 104250540002086 | C10: 孔令茹 | D10: 82.0 | E10: 82.4 | F10: 80.0 | G10: =D10*30%+E10*50%+F10*20% -> 81.8 | H10: =G10*40% -> 32.7 | I10: 384.0 | J10: =I10/5 -> 76.8 | K10: =J10*60% -> 46.1 | L10: =H10+K10 -> 78.8
A11: 10 | B11: 100550333309471 | C11: 李茏菲 | D11: 78.5 | E11: 86.8 | F11: 73.0 | G11: =D11*30%+E11*50%+F11*20% -> 81.6 | H11: =G11*40% -> 32.6 | I11: 383.0 | J11: =I11/5 -> 76.6 | K11: =J11*60% -> 46.0 | L11: =H11+K11 -> 78.6
A12: 11 | B12: 100320050211135 | C12: 董昭 | D12: 87.0 | E12: 89.2 | F12: 80.0 | G12: =D12*30%+E12*50%+F12*20% -> 86.7 | H12: =G12*40% -> 34.7 | I12: 388 | J12: =I12/5 -> 77.6 | K12: =J12*60% -> 46.6 | L12: =H12+K12 -> 81.2
A13: 12 | B13: 100320050211035 | C13: 王优 | D13: 82.5 | E13: 83.8 | F13: 92.0 | G13: =D13*30%+E13*50%+F13*20% -> 85.1 | H13: =G13*40% -> 34.0 | I13: 386 | J13: =I13/5 -> 77.2 | K13: =J13*60% -> 46.3 | L13: =H13+K13 -> 80.3
A14: 13 | B14: 102870211208901 | C14: 刘锲 | D14: 81.5 | E14: 86.4 | F14: 87.0 | G14: =D14*30%+E14*50%+F14*20% -> 85.1 | H14: =G14*40% -> 34.0 | I14: 383 | J14: =I14/5 -> 76.6 | K14: =J14*60% -> 46.0 | L14: =H14+K14 -> 80.0
A15: 14 | B15: 100320050211257 | C15: 于嘉馨 | D15: 78.0 | E15: 84.4 | F15: 75.0 | G15: =D15*30%+E15*50%+F15*20% -> 80.6 | H15: =G15*40% -> 32.2 | I15: 390 | J15: =I15/5 -> 78.0 | K15: =J15*60% -> 46.8 | L15: =H15+K15 -> 79.0
A16: 15 | B16: 101510001005226 | C16: 田晓素 | D16: 63.5 | E16: 51.6 | F16: 70.0 | G16: =D16*30%+E16*50%+F16*20% -> 58.9 | H16: =G16*40% -> 23.5 | I16: 388 | J16: =I16/5 -> 77.6 | K16: =J16*60% -> 46.6 | L16: =H16+K16 -> 70.1
A17: 16 | B17: 100360999913863 | C17: 张瑞月 | D17: 80.5 | E17: 81.2 | F17: 85.0 | G17: =D17*30%+E17*50%+F17*20% -> 81.8 | H17: =G17*40% -> 32.7 | I17: 385 | J17: =I17/5 -> 77.0 | K17: =J17*60% -> 46.2 | L17: =H17+K17 -> 78.9
